bitfinex/quotes_ETHUSD_20241001
["timestamp","ask_amount","ask_price","bid_price","bid_amount"]
[1727789975251,8.81507132,2590.4,2589.8,0.492079]
[1727789975455,1.1294,2590.7,2589.7,1.0542]
[1727789975623,4.95464132,2590.3,2589.7,1.0542]
[1727789975954,3.86096,2590.1,2589.7,1.0542]
[1727789976134,1.91190594,2590.7,2589.7,1.0542]
[1727789976135,4.95464132,2589.9,2589.7,1.0542]
[1727789976344,3.86072,2590.2,2589.7,1.0542]
[1727789976538,4.95464132,2590.3,2589.8,0.492078]
[1727789976539,3.86102,2590.0,2589.8,0.492078]
[1727789976744,3.8613,2589.8,2589.7,1.0542]
[1727789977182,3.8606,2590.3,2589.7,1.0542]
[1727789977183,3.86066,2590.3,2589.7,1.0542]
[1727789977359,1.95426278,2590.7,2589.8,3.86128]
[1727789977360,3.85996,2590.7,2589.8,3.86128]
[1727789977672,3.86028,2590.5,2589.9,1.0416]
[1727789978017,8.81460132,2590.7,2589.9,1.0416]
[1727789978018,8.81460132,2590.7,2590.0,3.86087]
[1727789978281,4.95464132,2590.6,2589.9,4.90272]
[1727789978488,3.86001,2590.7,2589.9,1.0416]
[1727789978770,3.86001,2590.7,2590.0,3.86089]
[1727789978974,3.85967,2590.9,2590.1,0.490249]
[1727789979172,3.86007,2590.7,2590.1,0.490249]
[1727789979378,3.85985,2590.8,2590.1,0.490249]
[1727789979605,8.81435132,2590.9,2590.1,0.490249]
[1727789979740,3.86006,2590.7,2590.1,4.351059]
[1727789979941,3.86006,2590.7,2590.2,0.8211949]
[1727789980170,4.95464132,2590.5,2590.0,3.86089]
[1727789980473,3.85981,2590.8,2590.0,3.86093]
[1727789980710,8.81441132,2590.9,2590.0,3.86093]
[1727789980905,8.81441132,2590.9,2590.0,3.86098]
[1727789980906,4.95464132,2590.5,2590.0,3.86098]
[1727789981107,4.95464132,2590.5,2590.1,0.490258]
[1727789981260,4.95464132,2590.5,2589.9,1.0416]
[1727789981464,3.86051,2590.4,2589.9,1.0416]
[1727789981694,8.81502132,2590.5,2589.9,1.0416]
[1727789981912,1.0858,2590.6,2589.6,7.72802]
[1727789981913,8.81560132,2590.1,2589.6,1.0556]
[1727789982198,4.95464132,2590.1,2589.6,1.0556]
[1727789982496,4.95464132,2590.1,2589.7,0.491722]
[1727789982810,7.72008,2590.7,2590.1,3.86084]
[1727789983102,3.85999,2590.7,2590.1,3.86084]
[1727789983305,3.85996,2590.7,2590.1,3.86084]
[1727789983509,4.95464132,2590.6,2589.8,1.1132]
[1727789983994,1.1286,2591.0,2589.8,1.1132]
[1727789983995,4.95464132,2590.2,2589.8,1.1132]
[1727789984404,3.86065,2590.3,2589.8,1.1132]
[1727789984564,1.0578,2590.4,2589.8,3.86117]
[1727789984917,3.86055,2590.3,2589.6,0.005]
[1727789985124,0.78250594,2590.8,2589.9,1.082]
[1727789985405,2.73200719,2591.6,2589.6,0.005]
[1727789985406,3.85944,2591.1,2590.5,1.082]
[1727789985605,7.57478378,2591.6,2590.5,1.57623]
[1727789985606,1.84030594,2591.6,2590.5,1.57623]
[1727789985803,3.85924,2591.2,2590.5,1.082]
[1727789986308,3.8588,2591.5,2590.6,3.85997]
[1727789986463,3.85892,2591.4,2590.8,3.85972]
[1727789986665,3.85854,2591.7,2591.0,3.8595]
[1727789987005,3.85866,2591.6,2591.1,3.85935]
[1727789987204,3.85818,2591.9,2591.2,7.7183]
[1727789987504,11.05525816,2592.4,2591.0,0.49292]
[1727789987505,3.85856,2591.7,2591.3,1.037]
[1727789988275,7.71651,2591.9,2591.3,1.037]
[1727789988479,3.85833,2591.8,2591.3,1.037]
[1727789988787,3.8585,2591.7,2591.3,1.912546]
[1727789988987,3.8582,2591.9,2591.3,1.912546]
[1727789989602,7.71651,2591.9,2591.3,5.771516]
[1727789989909,3.8585,2591.7,2591.3,1.912546]
[1727789990266,3.85793,2592.1,2591.3,5.771476]
[1727789990464,3.85853,2591.7,2591.4,0.5771476]
[1727789990703,3.85818,2591.9,2591.3,1.037]
[1727789991003,3.85842,2591.8,2591.3,1.037]
[1727789991168,3.85847,2591.7,2591.3,1.037]
[1727789991365,3.85871,2591.6,2591.3,1.037]
[1727789991567,3.85878,2591.5,2591.3,1.037]
[1727789991766,3.85853,2591.7,2591.1,3.85934]
[1727789992008,3.85893,2591.4,2590.8,4.98955]
[1727789992221,3.85876,2591.6,2590.2,3.86063]
[1727789992222,0.78250594,2591.5,2590.2,3.86063]
[1727789992418,3.85981,2590.8,2590.4,1.064]
[1727789992715,3.85962,2591.0,2590.4,1.064]
[1727789992871,3.8597,2590.9,2590.4,1.556469]
[1727789993071,3.85948,2591.1,2590.5,3.86023]
[1727789993275,1.17175684,2591.4,2590.5,3.86023]
[1727789993276,0.78250594,2591.5,2590.5,1.064]
[1727789993622,3.85871,2591.6,2591.0,4.9162]
[1727789993785,1.56234246,2592.0,2591.1,0.877574]
[1727789993786,0.78250594,2592.0,2591.1,0.877574]
[1727789994110,3.8585,2591.7,2591.2,3.85917]
[1727789994423,3.85892,2591.4,2591.0,1.0567]
[1727789994711,3.85865,2591.6,2591.0,1.0567]
[1727789994912,3.85833,2591.8,2591.2,3.8592]
[1727789995413,3.85847,2591.7,2591.2,4.736659]
[1727789995767,3.85821,2591.9,2591.0,1.0567]
[1727789995768,3.85889,2591.5,2591.0,1.0567]
[1727789996016,3.85936,2591.1,2591.0,1.0567]
[1727789996215,3.85919,2591.3,2590.3,1.0944]
[1727789996216,6.88784726,2591.2,2590.3,1.0944]
[1727789996517,3.86036,2590.5,2590.3,1.0944]
[1727789996870,3.86004,2590.7,2590.3,1.0944]
[1727789997218,3.85989,2590.8,2590.3,1.0944]
[1727789997399,7.71925,2591.0,2590.4,3.91043674]
[1727789997711,3.85989,2590.8,2590.3,1.589906]
[1727789998116,3.85957,2591.0,2590.4,3.86032]
[1727789998322,4.64091709,2591.3,2590.7,3.85987]
[1727789998474,2.34561287,2591.9,2591.3,1.0813]
[1727789998475,4.64022709,2591.8,2591.3,1.0813]
[1727789998675,3.85866,2591.6,2591.3,1.0813]
[1727789999169,0.78180709,2591.8,2590.9,4.96261]
[1727789999369,3.85899,2591.4,2590.9,1.1031]
[1727789999583,6.07014132,2591.7,2590.9,1.1031]
[1727789999787,4.64095709,2591.3,2590.9,1.1031]
[1727790000100,4.64065709,2591.5,2590.9,1.1031]
[1727790000305,7.24294725,2591.7,2590.9,1.1031]
[1727790000306,4.95464132,2591.6,2590.9,1.1031]
[1727790000609,4.95464132,2591.6,2589.9,3.86108]
[1727790000610,3.86004,2590.7,2589.9,3.86108]
[1727790000815,3.86015,2590.6,2589.8,4.97901]
[1727790000999,8.81463132,2590.7,2589.8,1.1178]
[1727790001172,9.59643841,2590.7,2589.8,1.1178]
[1727790001372,3.86042,2590.4,2589.9,0.497916]
[1727790001582,3.86066,2590.3,2589.9,0.497916]
[1727790001886,3.86042,2590.4,2589.9,0.497916]
[1727790002088,0.78180709,2590.7,2590.0,3.86099]
[1727790002303,1.17280593,2590.8,2590.0,3.86088]
[1727790002304,3.86019,2590.6,2590.0,3.86088]
[1727790002521,3.85989,2590.8,2590.1,1.0726]
[1727790002698,3.86001,2590.7,2590.2,3.86062]
[1727790003025,3.8606,2590.3,2590.1,1.0726]
[1727790003316,3.8606,2590.3,2589.7,1.0726]
[1727790003317,3.8607,2590.2,2589.7,1.0726]
[1727790003530,3.86116,2589.9,2589.7,1.0726]
[1727790003879,0.78180709,2590.2,2589.7,1.0726]
[1727790004128,1.95461302,2590.6,2589.7,4.93395]
[1727790004278,0.78180709,2590.6,2589.9,3.86105]
[1727790004661,3.86035,2590.5,2589.8,0.493895]
[1727790004977,4.64180709,2590.7,2589.8,0.493895]
[1727790004978,3.8608,2590.2,2589.8,0.493895]
[1727790005203,3.8608,2590.2,2589.7,1.0726]
[1727790005804,3.86045,2590.4,2589.7,1.0726]
[1727790006003,3.86045,2590.4,2589.7,0.3087]
[1727790006004,3.86072,2590.2,2589.7,0.3087]
[1727790006220,3.8613,2589.8,2589.6,0.005]
[1727790006422,3.86128,2589.9,2589.6,0.005]
[1727790006619,4.64270709,2590.1,2589.6,0.005]
[1727790006778,3.86109,2590.0,2589.6,0.005]
[1727790007178,3.8609,2590.1,2589.6,0.005]
[1727790007616,3.86128,2589.9,2589.6,0.005]
[1727790007832,3.86127,2589.9,2589.6,0.005]
[1727790008210,3.86145,2589.7,2589.6,0.005]
[1727790008543,3.86145,2589.7,2586.9,0.80327517]
[1727790008544,0.55,2589.0,2586.9,0.80327517]
[1727790008738,0.55,2589.0,2587.0,0.25336616]
[1727790008739,0.78127596,2588.2,2587.0,0.25336616]
[1727790009019,0.78127596,2588.5,2587.6,0.8157]
[1727790009223,3.86303,2588.7,2587.8,3.86416]
[1727790009379,3.86303,2588.7,2587.7,0.56532051]
[1727790009579,3.86303,2588.7,2587.6,4.68021]
[1727790009580,3.86269,2588.9,2587.8,3.86414]
[1727790009816,3.86297,2588.7,2588.0,3.86388]
[1727790010121,3.86297,2588.7,2587.9,0.386414]
[1727790010122,3.86342,2588.4,2587.9,0.386414]
[1727790010428,3.8633,2588.5,2587.6,4.68015]
[1727790010578,3.86364,2588.3,2587.6,0.8157]
[1727790010953,3.86358,2588.3,2587.6,0.8157]
[1727790011123,3.86358,2588.3,2587.6,4.68023]
[1727790011657,3.86423,2587.9,2587.6,0.8157]
[1727790011969,3.8639,2588.1,2587.6,0.8157]
[1727790012144,3.86425,2587.9,2587.2,4.68079]
[1727790012473,3.86453,2587.7,2587.2,0.8157]
[1727790013456,3.86422,2587.9,2587.2,0.8157]
[1727790013457,3.86482,2587.5,2587.2,0.8157]
[1727790013665,3.8647,2587.6,2587.2,0.8157]
[1727790013809,3.86461,2587.6,2587.2,0.8157]
[1727790014530,1.1116,2588.3,2587.2,1.283817]
[1727790014725,3.86423,2587.9,2587.3,3.86502]
[1727790014928,3.86423,2587.9,2587.2,0.8157]
[1727790014929,3.86428,2587.8,2587.2,0.8157]
[1727790015157,3.86446,2587.7,2587.2,0.8157]
[1727790015541,3.86458,2587.6,2587.2,0.8157]
[1727790015745,3.86446,2587.7,2587.2,0.8157]
[1727790016256,1.56255193,2589.1,2587.2,0.8157]
[1727790016257,3.86298,2588.7,2587.7,3.86443]
[1727790016420,3.86372,2588.2,2587.5,3.8647]
[1727790016617,3.86372,2588.2,2587.6,3.86457]
[1727790016835,7.7275,2588.2,2587.6,3.86457]
[1727790017175,7.7275,2588.2,2587.1,3.86531]
[1727790017176,3.86456,2587.7,2587.1,3.8652]
[1727790017315,3.86498,2587.4,2586.8,0.52547363]
[1727790017514,3.86498,2587.4,2586.9,0.43913136]
[1727790017728,3.86519,2587.2,2586.9,0.43913136]
[1727790017927,3.86498,2587.4,2586.8,0.52547363]
[1727790018161,3.86551,2587.0,2586.8,0.52547363]
[1727790018316,3.86478,2587.5,2586.8,0.52547363]
[1727790018317,1.0912,2587.1,2586.8,0.52547363]
[1727790018543,3.86558,2587.0,2586.8,0.52547363]
[1727790018777,3.86541,2587.1,2586.8,0.52547363]
[1727790018976,7.73055,2587.2,2586.8,0.52547363]
[1727790019192,3.86563,2586.9,2586.8,0.52547363]
[1727790019743,4.638742,2586.9,2586.8,0.52547363]
[1727790019943,3.86524,2587.2,2586.8,0.52547363]
[1727790019944,3.86522,2587.2,2586.8,0.52547363]
[1727790020463,3.86534,2587.1,2586.8,0.52547363]
[1727790020969,3.86512,2587.3,2586.8,0.52547363]
[1727790021180,1.0873,2587.9,2586.8,0.52547363]
[1727790021487,3.86548,2587.0,2586.8,0.52547363]
[1727790021688,3.86563,2586.9,2586.8,0.52547363]
[1727790022245,3.86526,2587.2,2586.8,0.52547363]
[1727790022407,3.86495,2587.4,2586.8,0.52547363]
[1727790022555,3.86495,2587.4,2586.8,4.39116363]
[1727790022901,1.0883,2587.9,2586.8,0.52547363]
[1727790023212,3.86481,2587.5,2586.8,0.52547363]
[1727790023356,1.0883,2587.9,2586.9,0.829]
[1727790023552,3.86487,2587.5,2586.9,4.69455]
[1727790023758,1.0953,2588.3,2587.3,3.86493]
[1727790024059,3.86406,2588.0,2587.3,3.86493]
[1727790024286,0.492638,2588.6,2587.0,0.90857136]
[1727790024287,3.86346,2588.4,2587.5,0.829]
[1727790024613,1.587938,2588.6,2587.6,3.86445]
[1727790024809,1.0953,2588.6,2587.5,0.829]
[1727790025110,3.86392,2588.1,2587.5,0.829]
[1727790025266,3.8633,2588.5,2587.9,3.86411]
[1727790025473,4.95844,2588.6,2587.7,3.86438]
[1727790025705,3.86349,2588.4,2587.9,3.86403]
[1727790025909,3.86349,2588.4,2587.9,4.250433]
[1727790026326,3.86346,2588.4,2587.9,4.250433]
[1727790026662,3.86351,2588.4,2587.9,0.386403]
[1727790026867,3.86356,2588.3,2587.7,3.86432]
[1727790027166,3.86356,2588.3,2584.9,3.82381544]
[1727790027167,3.86487,2587.5,2587.3,0.829]
[1727790027496,3.86487,2587.5,2586.9,0.829]
[1727790027497,3.86473,2587.5,2586.9,0.829]
[1727790027867,3.86514,2587.3,2586.9,0.829]
[1727790028383,3.86537,2587.1,2586.9,0.829]
[1727790028721,3.86542,2587.1,2586.9,0.829]
[1727790029015,3.86525,2587.2,2586.8,0.52547363]
[1727790029514,3.8655,2587.0,2586.8,0.52547363]
[1727790029681,3.86525,2587.2,2586.8,0.52547363]
[1727790029923,3.86503,2587.3,2586.8,0.52547363]
[1727790030129,3.86536,2587.1,2586.8,0.52547363]
[1727790030958,3.8656,2587.0,2586.8,0.52547363]
[1727790031114,7.73122,2587.0,2586.8,0.52547363]
[1727790031313,3.8656,2587.0,2586.8,0.52547363]
[1727790031655,8.81868132,2588.0,2587.1,3.86525]
[1727790031656,3.86452,2587.7,2587.1,3.86525]
[1727790031862,3.86422,2587.9,2587.1,3.86525]
[1727790032078,3.86402,2588.0,2587.4,3.86478]
[1727790032212,1.0615,2588.3,2587.4,3.86478]
[1727790032213,3.86372,2588.2,2587.4,3.86478]
[1727790032412,3.86421,2587.9,2587.3,3.86495]
[1727790032722,3.86442,2587.8,2586.8,0.52547363]
[1727790032927,3.8651,2587.3,2586.8,0.52547363]
[1727790033125,3.86481,2587.5,2586.8,4.39114363]
[1727790033330,4.250932,2587.7,2586.8,4.39114363]
[1727790033331,3.86452,2587.7,2586.8,4.39114363]
[1727790033544,3.86424,2587.9,2587.4,0.829]
[1727790033745,3.86466,2587.6,2587.4,0.829]
[1727790034028,7.72818,2588.0,2587.4,0.829]
[1727790034253,3.86366,2588.3,2587.7,3.86442]
[1727790034542,3.864,2588.0,2587.4,0.829]
[1727790034737,0.386145,2589.7,2587.4,0.829]
[1727790034738,1.1562,2588.3,2587.4,0.829]
[1727790034971,0.501959,2588.2,2587.4,0.829]
[1727790035126,3.86404,2588.0,2587.4,0.829]
[1727790035770,3.86377,2588.2,2587.4,0.829]
[1727790036075,3.86377,2588.2,2587.5,3.86464]
[1727790036284,3.8636,2588.3,2587.6,3.86456]
[1727790036566,1.0997,2588.7,2587.7,0.829]
[1727790036766,3.86266,2588.9,2587.7,0.829]
[1727790036986,3.86406,2588.0,2587.7,0.829]
[1727790037131,3.86409,2588.0,2587.7,0.829]
[1727790037327,3.86422,2587.9,2587.7,0.829]
[1727790037529,3.86422,2587.9,2586.8,0.52547363]
[1727790037530,3.86535,2587.1,2586.8,0.52547363]
[1727790037730,3.86541,2587.1,2586.8,0.52547363]
[1727790038038,3.86521,2587.2,2586.8,0.52547363]
[1727790038355,3.86507,2587.3,2586.8,0.52547363]
[1727790038668,3.86542,2587.1,2586.8,0.52547363]
[1727790038839,3.86557,2587.0,2586.8,0.52547363]
[1727790039041,3.86483,2587.5,2586.8,0.52547363]
[1727790039042,3.86563,2586.9,2586.8,0.52547363]
[1727790039244,4.252193,2586.9,2586.8,0.52547363]
[1727790040562,3.86563,2586.9,2586.8,0.52547363]
[1727790042479,3.86563,2586.9,2586.8,0.0328421]
[1727790042480,4.98213,2586.9,2586.8,0.0328421]
[1727790042776,3.86607,2586.6,2586.5,0.1241369]
[1727790043891,3.86607,2586.6,2585.1,3.86827]
[1727790043892,3.86738,2585.8,2584.7,4.82193]
[1727790044039,3.86731,2585.8,2584.7,4.82196]
[1727790044242,3.86788,2585.4,2584.7,4.82191]
[1727790044469,3.86862,2584.9,2584.3,3.86941]
[1727790044673,3.86904,2584.7,2584.2,0.00080386]
[1727790044897,4.95464132,2584.8,2584.2,0.00080386]
[1727790045062,3.86907,2584.6,2584.2,0.00080386]
[1727790045679,3.86951,2584.3,2584.2,0.00080386]
[1727790045894,7.73887,2584.4,2584.2,0.00080386]
[1727790046057,3.86951,2584.3,2584.2,0.00080386]
[1727790047466,4.92001,2584.3,2584.2,0.00080386]
[1727790047881,3.86906,2584.7,2584.2,0.00080386]
[1727790047882,1.0505,2584.7,2584.2,0.00080386]
[1727790048198,3.86924,2584.5,2584.2,0.00080386]
[1727790048357,3.86951,2584.3,2584.2,0.00080386]
[1727790048772,4.93361,2584.3,2584.2,0.00080386]
[1727790049856,3.86951,2584.3,2584.2,0.00080386]
[1727790050689,4.643385,2584.3,2584.2,0.00080386]
[1727790050912,3.86951,2584.3,2584.2,0.00080386]
[1727790053798,1.1068,2584.3,2584.0,3.13274793]
[1727790053999,8.82445132,2584.1,2584.0,3.13274793]
[1727790054421,8.82445132,2584.1,2583.9,0.1241369]
[1727790054422,6.24097213,2584.0,2583.0,0.88806838]
[1727790054564,3.87131,2583.1,2583.0,0.88806838]
[1727790055380,4.98161,2583.1,2583.0,0.88806838]
[1727790056176,1.26941213,2584.0,2583.0,0.88806838]
[1727790056394,1.1402,2584.2,2583.0,0.88806838]
[1727790056395,3.87098,2583.4,2583.0,1.09261522]
[1727790056693,6.09484132,2584.2,2583.0,1.09261522]
[1727790056694,3.87068,2583.6,2583.0,0.88806838]
[1727790056930,3.86997,2584.0,2583.0,4.75948838]
[1727790057109,3.86997,2584.0,2583.1,0.86310184]
[1727790057312,3.87007,2584.0,2583.1,0.86310184]
[1727790057511,3.86945,2584.4,2583.4,3.87072]
[1727790057713,3.86945,2584.4,2583.5,5.02207]
[1727790058035,3.86945,2584.4,2583.6,0.07739815]
[1727790058386,3.86968,2584.2,2583.5,1.1515]
[1727790058585,3.86968,2584.2,2583.5,1.653741]
[1727790059196,3.86943,2584.4,2583.5,1.653741]
[1727790059523,3.86943,2584.4,2583.6,3.87055]
[1727790059732,3.8687,2584.9,2584.0,3.86995]
[1727790060019,3.8687,2584.9,2584.1,0.503185]
[1727790060020,3.86879,2584.8,2584.1,0.503185]
[1727790060222,3.86853,2585.0,2584.2,1.1619]
[1727790060439,3.86915,2584.6,2584.0,1.1619]
[1727790060730,3.86949,2584.4,2584.0,1.1619]
[1727790060895,4.256559,2584.3,2584.0,1.1619]
[1727790061102,3.86923,2584.5,2583.4,1.1619]
[1727790061283,3.87048,2583.7,2583.4,1.1619]
[1727790061630,3.87058,2583.6,2583.4,1.1619]
[1727790061797,3.87058,2583.6,2583.0,0.88806838]
[1727790061798,3.87112,2583.3,2583.0,1.97846838]
[1727790062143,3.87116,2583.2,2583.0,0.88806838]
[1727790062282,3.87131,2583.1,2583.0,0.88806838]
[1727790063695,3.87268,2582.2,2582.0,0.0024909]
[1727790063898,3.87251,2582.3,2582.0,0.0024909]
[1727790064239,3.8724,2582.4,2582.0,0.0024909]
[1727790064598,3.87217,2582.6,2582.0,0.0024909]
[1727790064816,3.87231,2582.5,2582.0,0.0024909]
[1727790065143,3.87214,2582.6,2582.0,0.0024909]
[1727790065327,3.8716,2583.0,2582.0,0.0024909]
[1727790065328,3.87232,2582.5,2582.0,0.0024909]
[1727790066310,7.74468,2582.5,2582.0,0.0024909]
[1727790066524,3.87232,2582.5,2582.0,0.0024909]
[1727790066727,3.87191,2582.7,2582.0,0.0024909]
[1727790066926,3.87179,2582.8,2582.0,0.0024909]
[1727790066927,3.87253,2582.3,2582.0,0.0024909]
[1727790067204,1.1214,2583.1,2582.0,0.0024909]
[1727790067205,3.87281,2582.2,2582.0,0.0024909]
[1727790067512,6.05704132,2582.1,2582.0,0.0024909]
[1727790067812,6.05704132,2582.1,2581.3,0.1241369]
[1727790067813,3.87329,2581.8,2581.3,0.1241369]
[1727790068050,4.95406,2581.4,2581.3,0.1241369]
[1727790068202,8.82810132,2581.7,2581.3,0.1241369]
[1727790068203,3.8735,2581.7,2581.3,0.1241369]
[1727790068403,3.87357,2581.6,2581.3,0.1241369]
[1727790068744,3.87305,2582.0,2581.3,0.1241369]
[1727790068900,8.82632132,2582.9,2581.3,0.1241369]
[1727790068901,3.87331,2581.8,2581.3,0.1241369]
[1727790069100,3.87342,2581.7,2581.3,0.1241369]
[1727790069302,3.87386,2581.4,2581.3,0.1241369]
[1727790069658,3.87371,2581.5,2581.3,0.1241369]
[1727790069974,3.87366,2581.6,2581.3,0.1241369]
[1727790070115,3.87349,2581.7,2581.3,0.1241369]
[1727790070508,3.87382,2581.5,2581.3,0.1241369]
[1727790071272,1.1176,2582.4,2581.3,0.1241369]
[1727790071406,3.87386,2581.4,2581.3,0.1241369]
[1727790072107,3.87329,2581.8,2581.4,1.0915]
[1727790072308,1.97263213,2582.8,2581.4,1.0915]
[1727790072648,1.97263213,2582.8,2581.3,0.1241369]
[1727790072649,3.87371,2581.5,2581.3,0.1241369]
[1727790072952,3.87386,2581.4,2581.3,0.1241369]
[1727790073748,4.96336,2581.4,2581.3,0.1241369]
[1727790074050,3.87386,2581.4,2581.3,0.1241369]
[1727790075058,3.87371,2581.5,2581.3,0.1241369]
[1727790075210,3.87307,2582.0,2581.4,1.116]
[1727790075521,4.95464132,2582.5,2581.4,1.116]
[1727790075522,3.87323,2581.9,2581.4,1.116]
[1727790075709,3.87314,2581.9,2581.4,1.116]
[1727790076348,3.87371,2581.5,2581.4,1.116]
[1727790076563,3.87386,2581.4,2581.3,0.1241369]
[1727790078451,3.87245,2582.4,2581.3,0.1241369]
[1727790078452,3.87212,2582.6,2581.4,1.1511]
[1727790078622,3.87337,2581.8,2581.4,1.1511]
[1727790079323,3.87386,2581.4,2581.3,0.1241369]
[1727790080154,1.1327,2582.1,2581.3,0.1241369]
[1727790080364,3.87301,2582.0,2581.3,0.1241369]
[1727790080507,3.87275,2582.2,2581.4,1.1218]
[1727790080711,3.87336,2581.8,2581.4,1.63379669]
[1727790080953,3.87271,2582.2,2581.3,0.1241369]
[1727790080954,3.87386,2581.4,2581.3,0.1241369]
[1727790081270,3.87377,2581.5,2581.3,0.1241369]
[1727790081552,3.87386,2581.4,2581.3,0.1241369]
[1727790082358,3.87351,2581.7,2581.3,0.1241369]
[1727790082604,3.87351,2581.7,2581.4,1.1463]
[1727790082714,6.05824132,2582.5,2581.4,1.1463]
[1727790083072,3.87261,2582.3,2581.4,1.1463]
[1727790083267,3.87261,2582.3,2581.5,0.55]
[1727790083417,3.87239,2582.4,2581.4,1.1463]
[1727790083759,3.87301,2582.0,2581.4,1.1463]
[1727790083924,3.87335,2581.8,2581.4,1.1463]
[1727790084126,1.092,2582.2,2581.3,0.1241369]
[1727790084319,3.87386,2581.4,2581.3,0.1241369]
[1727790084527,3.87371,2581.5,2581.3,0.1241369]
[1727790084745,3.87386,2581.4,2581.3,0.1241369]
[1727790085610,4.99646,2581.4,2581.3,0.1241369]
[1727790085810,5.883477,2581.4,2581.3,0.1241369]
[1727790086010,3.87386,2581.4,2581.3,0.1241369]
[1727790087461,4.96886,2581.4,2580.5,3.80964165]
[1727790087638,8.82970132,2580.6,2580.5,3.80964165]
[1727790087826,3.87506,2580.6,2580.5,3.80964165]
[1727790088052,3.87491,2580.8,2580.5,3.80964165]
[1727790088267,5.02804,2581.3,2580.5,3.80964165]
[1727790088268,3.87461,2580.9,2580.5,3.80964165]
[1727790088425,5.02808,2581.3,2580.5,3.80964165]
[1727790088426,3.87486,2580.8,2580.5,3.80964165]
[1727790088630,3.87421,2581.2,2580.5,3.80964165]
[1727790088631,3.87452,2581.0,2580.5,3.80964165]
[1727790088840,3.87464,2580.9,2580.5,3.80964165]
[1727790089173,3.87452,2581.0,2580.5,3.80964165]
[1727790089174,3.87506,2580.6,2580.5,3.80964165]
[1727790089317,4.95464132,2581.0,2580.5,3.80964165]
[1727790089318,3.87491,2580.8,2580.5,3.80964165]
[1727790089511,3.8745,2581.0,2580.5,3.80964165]
[1727790089713,3.87473,2580.9,2580.5,3.80964165]
[1727790089958,3.8745,2581.0,2580.5,3.80964165]
[1727790089959,3.87456,2581.0,2580.5,3.80964165]
[1727790090190,3.87494,2580.7,2580.5,3.80964165]
[1727790090691,3.87488,2580.8,2580.5,3.80964165]
[1727790090913,3.87506,2580.6,2580.5,3.80964165]
[1727790091998,3.87581,2580.1,2580.0,2.18]
[1727790092181,8.83045132,2580.1,2580.0,2.18]
[1727790092398,8.83045132,2580.1,2577.5,3.87966]
[1727790092399,3.87733,2579.1,2577.5,3.87966]
[1727790092734,4.95464132,2579.5,2578.2,3.8786]
[1727790092866,3.87734,2579.1,2578.2,3.87853]
[1727790093197,3.87734,2579.1,2578.0,3.87883]
[1727790093198,3.87772,2578.9,2578.0,3.87883]
[1727790093401,4.95464132,2579.1,2578.1,0.387883]
[1727790093704,3.87758,2579.0,2578.2,3.87864]
[1727790093874,3.87758,2579.0,2578.3,3.87851]
[1727790094078,3.87722,2579.2,2578.3,3.8784]
[1727790094276,4.95464132,2579.1,2577.9,3.87905]
[1727790094493,3.87758,2579.0,2578.0,4.266865]
[1727790094694,3.87791,2578.8,2578.0,4.266865]
[1727790094931,3.87763,2578.9,2578.0,0.387905]
[1727790095214,3.87804,2578.7,2578.0,0.387905]
[1727790095503,3.87804,2578.7,2578.0,1.0271]
[1727790095710,3.87769,2578.9,2578.1,3.8788]
[1727790095875,3.87769,2578.9,2578.2,3.87867]
[1727790096277,3.87769,2578.9,2578.0,1.0271]
[1727790096472,3.87793,2578.7,2578.0,1.0271]
[1727790096674,3.87793,2578.7,2578.1,1.040616]
[1727790096905,3.87793,2578.7,2578.1,0.490616]
[1727790096906,4.95464132,2578.7,2578.1,0.490616]
[1727790097115,4.95464132,2578.7,2576.9,0.3867]
[1727790097116,3.87849,2578.4,2577.7,3.8794]
[1727790097264,6.12574132,2578.3,2577.0,1.0271]
[1727790097466,6.12574132,2578.3,2576.0,2.40574846]
[1727790097467,3.87999,2577.4,2576.8,11.44376667]
[1727790097680,8.83446132,2577.5,2576.9,1.53245767]
[1727790097883,3.87997,2577.4,2576.9,1.53245767]
[1727790098299,3.87999,2577.4,2576.9,1.53245767]
[1727790098578,4.95464132,2577.5,2576.9,1.53245767]
[1727790098579,3.87973,2577.5,2576.9,1.53245767]
[1727790098809,3.8796,2577.6,2577.0,1.19491243]
[1727790099020,4.95464132,2577.9,2577.0,1.19491243]
[1727790099521,3.88018,2577.2,2576.8,10.41666667]
[1727790099734,3.88063,2576.9,2576.8,10.41666667]
[1727790099883,5.02263,2576.9,2576.8,10.41666667]
[1727790100382,6.79644213,2576.9,2576.8,10.41666667]
[1727790100579,5.02263,2576.9,2576.8,7.53491451]
[1727790100821,5.73892126,2576.9,2576.8,6.35811451]
[1727790101026,6.38110381,2576.9,2576.8,6.35811451]
[1727790101379,13.11403915,2576.9,2576.8,6.35811451]
[1727790101737,4.97683,2576.3,2576.0,0.001942]
[1727790102087,5.7053157,2576.3,2576.0,0.001942]
[1727790102283,6.16694821,2576.3,2576.0,0.001942]
[1727790102583,1.94777209,2576.3,2576.0,1.168842]
[1727790102816,1.94777209,2576.3,2576.2,7.68909206]
[1727790102817,0.70390292,2576.3,2576.2,7.68909206]
[1727790102980,0.57176096,2577.8,2577.1,1.1669]
[1727790103180,3.87923,2577.9,2577.2,3.88016]
[1727790103411,3.87887,2578.1,2577.3,0.504706]
[1727790103683,3.87934,2577.8,2577.3,0.504706]
[1727790103879,4.4868762,2577.7,2577.1,1.1669]
[1727790104200,3.87915,2577.9,2577.1,1.1669]
[1727790104401,0.6073992,2577.8,2577.1,5.0472]
[1727790104737,3.87839,2578.4,2577.1,5.0472]
[1727790104738,0.57176096,2578.4,2577.2,0.50472]
[1727790104920,3.87964,2577.6,2577.1,1.1669]
[1727790105278,3.87964,2577.6,2576.7,3.88087]
[1727790105279,3.87986,2577.5,2576.7,4.98382]
[1727790105419,0.60749342,2577.4,2576.7,4.98382]